[Event "Grand Prix Romania 1st Stage 2024"]
[Site "Bucuresti"]
[Date "2024.03.23"]
[Round "2.5"]
[White "Angelov, Zvetomir"]
[Black "Safarli, Eltaj"]
[Result "0-1"]
[ECO "A34"]
[WhiteElo "2077"]
[BlackElo "2614"]
[Annotator "TA"]
[PlyCount "106"]
[EventDate "2024.03.20"]
[EventType "swiss"]
[EventCountry "ROU"]
[SourceTitle "playchess.com"]
[Source "ChessBase"]
[SourceQuality "1"]
[TimeControl "900+5"]

{[%evp 9,106,-28,-28,-67,-48,-69,-33,-54,-32,-52,-48,-50,-51,-41,-52,-60,-48,-81,-78,-87,-66,-81,-66,-114,-110,-130,-95,-150,-144,-127,-141,-152,-143,-125,-116,-116,-105,-195,-134,-237,-205,-247,-246,-231,-243,-219,-96,-118,-90,-93,-99,-97,-102,-117,-108,-180,-164,-177,-93,-99,-72,-81,-66,-79,-26,-77,-23,-36,-21,-239,0,-168,-60,-67,-76,-89,-87,-103,-96,-103,-78,-278,-289,-414,-356,-407,-403,-811,-557,-1791,-1776,-6123,-5385,-29979,-29980,-29980,-29981,-29980,-29980]} 1. c4 {[%emt 0:00:02]} c5 {[%emt 0:00:07]} 2. Nc3 {[%emt 0:00:02]} Nf6 {[%emt 0:00:18]} 3. Nf3 {[%emt 0:00:03]} e6 {[%emt 0:00:04]} 4. g3 {[%emt 0:01:08]} d5 {[%emt 0:00:02]} 5. Bg2 {[%emt 0:00:17]} d4 {[%emt 0:00:07]} 6. Nb1 {[%emt 0:00:16]} Nc6 {[%emt 0:00:06]} 7. d3 {[%emt 0:00:02]} h6 {[%emt 0:00:03]} 8. O-O {[%emt 0:00:03] Black is slightly better.} Be7 {[%emt 0:00:40]} 9. a3 {[%emt 0:00:02][%cal Ob2b4]} O-O {[%emt 0:00:06]} 10. b4 {[%emt 0:00:01]} cxb4 {[%emt 0:00:05]} 11. axb4 {[%emt 0:00:01]} Bxb4 {[%emt 0:00:01]} 12. Ba3 {[%emt 0:00:09]} Bxa3 {[%emt 0:00:07]} 13. Rxa3 {[%emt 0:00:06]} e5 {[%emt 0:00:02]} 14. Nbd2 {[%emt 0:00:00]} Re8 {[%emt 0:00:20]} 15. Qb1 {[%emt 0:01:14]} Rb8 {[%emt 0:00:08]} 16. h3 {[%emt 0:00:29]} (16. Nh4 $15 {feels stronger.} Bg4 17. Re1) 16... Bf5 {[%emt 0:00:09]} 17. Nh4 {[%emt 0:00:08]} Bh7 {[%emt 0:00:03]} 18. Qb5 {[%emt 0:00:23]} (18. Qb2 $142) 18... e4 $17 {[%emt 0:00:17]} 19. dxe4 {[%emt 0:01:43]} Nxe4 {[%emt 0:00:07]} 20. Nxe4 {[%emt 0:00:05]} Bxe4 {[%emt 0:00:02]} 21. Nf3 {[%emt 0:00:01]} Qe7 {[%emt 0:00:30]} 22. Ra2 {[%emt 0:00:10]} Rbd8 {[%emt 0:01:20]} 23. Rb2 {[%emt 0:00:55]} (23. Qa4 $17 {was worth a try.}) 23... b6 {[%emt 0:00:32]} (23... Qf6 $19 {Strongly threatening ...d3.} 24. Nh2 b6) 24. Rd1 {[%emt 0:02:01]} (24. Qa4 $17 {might work better.}) 24... d3 $19 {[%emt 0:00:29]} 25. e3 {[%emt 0:00:32]} Qf6 {[%emt 0:00:19]} 26. Nd2 {[%emt 0:00:25]} Bxg2 {[%emt 0:00:04]} 27. Kxg2 {[%emt 0:00:02]} Ne5 {[%emt 0:00:50]} (27... Re5 $19 {is more deadly.} 28. Qb3 Rf5) 28. Ra2 {[%emt 0:00:14]} Qe7 {[%emt 0:00:26]} (28... a5 {keeps more tension.} 29. c5 Qe6 30. Rda1 bxc5 31. Qxc5 Rd5) 29. Rda1 {[%emt 0:01:08]} Qb7+ {[%emt 0:00:07]} 30. e4 {[%emt 0:00:27]} Nc6 {[%emt 0:00:04]} (30... a5 $6 31. Rxa5 Qe7 32. Ra7 $11 (32. Qxb6 $2 Nxc4 33. Nxc4 Qxe4+ 34. Kg1 Qxc4 $19)) 31. c5 {[%emt 0:00:41]} Re5 {[%emt 0:00:06]} 32. Rb1 {[%emt 0:00:15]} (32. Rc1 $17) 32... Qd7 {[%emt 0:00:31] ...Rh5 is the strong threat.} (32... Rxc5 $2 33. Qxc5 Nd4 34. Qa3 $18) 33. Rc1 {[%emt 0:00:03]} Kh8 {[%emt 0:01:10]} (33... Rh5 $1 $19 34. h4 Kh7) 34. Nf3 $17 {[%emt 0:01:02]} Rxc5 {[%emt 0:00:12]} ({Reject} 34... Rxe4 $6 35. cxb6 Re6 36. b7 $11) 35. Rxc5 {[%emt 0:00:04]} bxc5 {[%emt 0:00:01]} 36. Qxc5 {[%emt 0:00:01]} a5 {[%emt 0:00:32]} (36... Qb7 $17) 37. Nd2 {[%emt 0:01:25]} (37. Ra3 $11 {remains equal.}) 37... Qe6 {[%emt 0:00:18]} (37... Qb7 $17) 38. Ra3 {[%emt 0:00:09]} Kg8 {[%emt 0:01:39]} 39. Rc3 $2 {[%emt 0:00:06]} (39. Qb5 $11 {and White has nothing to worry.}) 39... Rd6 $2 {[%emt 0:00:26]} ({Better is} 39... Qa2 $1 $19 {[%cal Ra2d2]} 40. Qb6 Qxd2 41. Rxc6 Qg5) 40. Qe3 {[%emt 0:01:06] [#]} (40. Qb5 $11 {and White is okay.}) 40... Nb4 {[%emt 0:00:12]} (40... Nd4 $1 $19 {Threatens to win with ...a4.} 41. Kh2 Nc2) 41. Qa7 $1 $15 {[%emt 0:00:30]} Rc6 $36 {[%emt 0:00:44][%mdl 2048] Black has strong initiative.} 42. Qa8+ {[%emt 0:00:18]} Kh7 {[%emt 0:00:01] Black is more active.} 43. Rxc6 {[%emt 0:00:17]} Nxc6 $17 {[%emt 0:00:02][%mdl 4096] Endgame. KQN-KQN} 44. Qa6 {[%emt 0:00:08]} Qd7 {[%emt 0:00:28]} 45. Qc4 $2 {[%emt 0:00:09] [#]} (45. h4 $17) 45... Nd8 $1 $19 {[%emt 0:00:26]} 46. Kf3 {[%emt 0:00:18]} (46. Qc3 $142 a4 47. h4) 46... a4 {[%emt 0:00:04][%cal Od8e6] Hoping for ...Ne6!} ({Less strong is} 46... Qxh3 47. Qd5 $15) 47. Ke3 {[%emt 0:00:07]} Ne6 {[%emt 0:00:40] White must now prevent ...a3.} ({Inferior is} 47... Qxh3 48. Qxa4 Qg4 49. Nf3 $11) 48. h4 {[%emt 0:00:08]} (48. Qxd3 $142 Qa7+ 49. Kf3 Nd4+ (49... a3 $2 50. Nb3 $19) 50. Ke3 Nc6+ 51. Ke2) 48... Qa7+ {[%emt 0:00:09]} 49. Kf3 {[%emt 0:00:07]} a3 {[%emt 0:00:11]} 50. Nb3 {[%emt 0:00:05]} a2 {[%emt 0:00:07][%cal Oe6d4] ( -> ...Nd4+!)} 51. Na1 {[%emt 0:00:04]} Qd4 {[%emt 0:00:10] Black mates.} 52. Qxd4 {[%emt 0:00:05]} Nxd4+ {[%emt 0:00:01]} 53. Ke3 {[%emt 0:00:02]} Nc2+ {[%emt 0:00:02] Weighted Error Value: White=0.81/Black=0.35.  Loses game:     	White=3     	---        Missed win:     	---       	Black=1      Mistake:       	White=8     	Black=6      Inaccurate:     	White=3     	Black=2      OK:         	White=8     	Black=12     Best:        	White=6     	Black=3      Strong:       	White=1     	Black=1} 0-1

[Event "Grand Prix Romania 1st Stage 2024"]
[Site "Bucuresti"]
[Date "2024.03.23"]
[Round "2.6"]
[White "Sokolov, Ivan"]
[Black "Ignat, Matei-Marius"]
[Result "1-0"]
[ECO "E60"]
[WhiteElo "2590"]
[BlackElo "2072"]
[Annotator "TA"]
[PlyCount "63"]
[EventDate "2024.03.20"]
[EventType "swiss"]
[EventCountry "ROU"]
[SourceTitle "playchess.com"]
[Source "ChessBase"]
[SourceQuality "1"]
[TimeControl "900+5"]

{[%evp 9,63,10,15,25,14,11,14,14,8,6,25,29,33,38,60,34,107,91,193,193,232,218,262,183,450,445,478,457,459,450,462,450,464,447,447,393,442,432,424,427,391,388,443,442,515,389,468,470,462,452,487,493,1623,410,1194,1193]} 1. d4 {[%emt 0:00:02][%cal Bd2d4,Bd4d5][%mdl 32]} Nf6 {[%emt 0:00:01]} 2. c4 {[%emt 0:00:03]} g6 {[%emt 0:00:06]} 3. h4 {[%emt 0:00:02]} Bg7 {[%emt 0:00:04]} 4. Nc3 {[%emt 0:00:03]} Nc6 {[%emt 0:00:49]} 5. Nf3 {[%emt 0:00:16]} d6 {[%emt 0:00:02]} 6. d5 {[%emt 0:00:07]} Nb8 {[%emt 0:00:05]} 7. e4 {[%emt 0:00:11]} e6 {[%emt 0:00:18]} 8. Be2 {[%emt 0:00:04] Die Stellung ist ausgeglichen.} (8. h5 {mit weiteren Verwicklungen.} Nxh5 9. Bg5 Nf6 10. Qd2) 8... O-O {[%emt 0:00:16]} 9. dxe6 {[%emt 0:00:04]} Bxe6 {[%emt 0:00:10]} 10. Nd4 {[%emt 0:00:03]} Re8 {[%emt 0:00:44]} 11. h5 {[%emt 0:00:08]} c6 {[%emt 0:00:31]} 12. hxg6 {[%emt 0:00:18]} hxg6 {[%emt 0:00:08] Weiß behält die Zügel nun fest in der Hand.} (12... fxg6 $14 13. Nxe6 Rxe6) 13. Bh6 {[%emt 0:00:02] Weiß steht aktiver.} Bh8 {[%emt 0:01:27]} (13... Bxh6 $16 {kämpft weiter.} 14. Rxh6 Bd7) 14. Qd2 $18 {[%emt 0:00:03]} Nbd7 {[%emt 0:02:29][%cal Oe6c4]} 15. O-O-O {[%emt 0:01:22]} Rc8 {[%emt 0:01:08]} 16. Kb1 {[%emt 0:00:04]} d5 $2 {[%emt 0:00:08] [#]} (16... Nc5) 17. Bg5 {[%emt 0:01:51]} Bg7 {[%emt 0:02:10]} 18. cxd5 {[%emt 0:00:10]} cxd5 {[%emt 0:00:00]} 19. exd5 {[%emt 0:00:02]} Rxc3 {[%emt 0:01:09]} 20. dxe6 {[%emt 0:00:04]} ({Schwächer ist} 20. bxc3 Bxd5 21. f3 Qb6+ 22. Ka1 a6 $16) 20... Rc5 {[%emt 0:01:27]} 21. exd7 {[%emt 0:00:13]} Qxd7 {[%emt 0:00:01]} 22. Bf3 {[%emt 0:00:49]} Ne4 {[%emt 0:01:06]} 23. Bxe4 {[%emt 0:00:07]} Rxe4 {[%emt 0:00:02]} 24. Nf3 {[%emt 0:00:33]} Qf5 {[%emt 0:00:08] [#] Weiss muss nun ...Rd4+ beachten.} 25. Ka1 {[%emt 0:00:52]} Re8 {[%emt 0:00:23] Verhindert Qd8.} 26. Rhe1 {[%emt 0:01:24]} Rec8 {[%emt 0:01:25]} 27. Rc1 {[%emt 0:02:39]} Rb5 {[%emt 0:00:02]} 28. Rxc8+ Qxc8 {[%emt 0:00:01]} 29. Rb1 {[%emt 0:00:33]} Qc7 {[%emt 0:00:50]} 30. Be3 {[%emt 0:00:07]} Ra5 {[%emt 0:00:06]} (30... a6 $142 31. a3 Bh8) 31. Bd4 {[%emt 0:01:01]} (31. Rc1 $142 Qxc1+ 32. Qxc1) 31... Bf8 {[%emt 0:00:14]} (31... Rd5 $142 32. Qc3 Qxc3 33. bxc3 b6 34. Bxg7 Kxg7) 32. Rh1 {[%emt 0:00:09] Gewichteter Fehlerwert: Weiß=0.28 (präzise) /Schwarz=0.45.  Fehler:       	Weiß=1     	Schwarz=5     Ungenau:       	Weiß=2     	---        OK:         	Weiß=14    	Schwarz=7     Bester:       	Weiß=1     	---} 1-0

[Event "Grand Prix Romania 1st Stage 2024"]
[Site "Bucuresti"]
[Date "2024.03.23"]
[Round "2.7"]
[White "Korcsek, Alexandru-David"]
[Black "Mamedov, Rauf"]
[Result "0-1"]
[ECO "B07"]
[WhiteElo "2022"]
[BlackElo "2651"]
[Annotator "TA"]
[PlyCount "72"]
[EventDate "2024.03.20"]
[EventType "swiss"]
[EventCountry "ROU"]
[SourceTitle "playchess.com"]
[Source "ChessBase"]
[SourceQuality "1"]
[TimeControl "900+5"]

{[%evp 14,72,63,59,82,57,46,20,28,7,18,0,0,0,2,2,0,-38,-26,-27,-25,-46,-21,-50,-39,-47,-39,-48,-64,-72,-59,-83,-81,-75,-83,-95,-70,-68,-71,-78,-48,-75,-45,-37,-50,-38,-41,-269,-176,-168,-160,-182,-180,-183,-169,-164,-139,-119,-136,-749,-728]} 1. e4 {[%emt 0:00:03]} c5 {[%emt 0:00:01]} 2. c3 {[%emt 0:00:01]} d6 {[%emt 0:00:09]} 3. d4 {[%emt 0:00:05]} Nf6 {[%emt 0:00:02][%cal Bg8f6,Bf6d7,Bd7c5][%mdl 32]} 4. Bd3 {[%emt 0:00:05]} g6 {[%emt 0:00:06]} 5. h3 {[%emt 0:00:12]} Bg7 {[%emt 0:00:02]} 6. Nf3 {[%emt 0:00:02]} O-O {[%emt 0:00:01]} 7. O-O {[%emt 0:00:16]} Qc7 {[%emt 0:00:03]} 8. Re1 {[%emt 0:00:40]} Nfd7 {[%emt 0:00:01]} 9. Bf4 {[%emt 0:01:32]} Nc6 {[%emt 0:00:04][%cal Rc5d4]} 10. Bc2 {[%emt 0:00:58]} b5 {[%emt 0:00:45] The position is equal.} 11. Qd2 {[%emt 0:02:00]} Qb6 {[%emt 0:00:53]} 12. dxc5 {[%emt 0:02:02]} Nxc5 {[%emt 0:02:39]} 13. Bh6 {[%emt 0:00:08]} Bb7 {[%emt 0:00:15]} 14. Bxg7 {[%emt 0:00:03]} Kxg7 {[%emt 0:00:02]} 15. Qf4 {[%emt 0:01:30]} (15. Na3 $5) 15... e5 {[%emt 0:01:21]} 16. Qg3 {[%emt 0:01:08]} b4 {[%emt 0:00:50] [#] ...bxc3 would now be deadly.} 17. Nbd2 {[%emt 0:00:54]} Ba6 {[%emt 0:00:01]} 18. Nb3 {[%emt 0:00:57]} Ne6 {[%emt 0:00:23]} 19. Rad1 {[%emt 0:00:17]} Rad8 {[%emt 0:00:06]} 20. Bd3 {[%emt 0:01:13]} Bxd3 {[%emt 0:00:09]} 21. Rxd3 {[%emt 0:00:01]} Qa6 {[%emt 0:00:04][%csl LRa2,LRd3]} 22. Nfd2 {[%emt 0:00:56]} Nf4 {[%emt 0:00:10]} (22... Qxa2 $6 23. Ra1 Qxb2 24. Rb1 $11) 23. Rde3 {[%emt 0:00:07]} bxc3 {[%emt 0:01:35]} ({Don't play} 23... Qxa2 24. Ra1 Qxb2 25. Rb1 $11) 24. bxc3 {[%emt 0:00:17]} Rb8 {[%emt 0:00:26]} (24... Qxa2 $6 25. Ra1 Qc2 26. Rc1 $11) 25. Qf3 {[%emt 0:00:15]} Ne7 {[%emt 0:00:28]} ({Much worse is} 25... Qxa2 26. Ra1 Qc2 27. Rc1 $11) 26. Ra1 {[%emt 0:00:52]} f5 {[%emt 0:00:39] Black has more active pieces.} 27. Kh2 {[%emt 0:00:02]} Ne6 {[%emt 0:00:23]} 28. exf5 {[%emt 0:00:09]} Nxf5 {[%emt 0:00:05]} 29. Ree1 {[%emt 0:00:16]} Nf4 {[%emt 0:00:22]} 30. Ne4 $2 {[%emt 0:00:05]} (30. c4 $1 $15) 30... d5 {[%emt 0:01:49]} 31. Nec5 {[%emt 0:00:03]} Qd6 {[%emt 0:00:01]} 32. Rad1 {[%emt 0:00:04] g3 is the strong threat.} e4 $36 {[%emt 0:00:33][%mdl 2048] Keeping White busy.} 33. Nxe4 {[%emt 0:00:02]} dxe4 {[%emt 0:00:01]} 34. Rxe4 {[%emt 0:00:03]} Nd3+ {[%emt 0:01:31]} 35. Kg1 {[%emt 0:00:42]} Rbd8 {[%cal Od3e5] Strongly threatening ...Ne5!} 36. Nc1 $2 {[%emt 0:00:00][%mdl 8192] [#]} (36. Rd2 $17) 36... Ne5 $1 {[%emt 0:00:06] Weighted Error Value: White=0.39/Black=0.13 (very precise) .  Loses game:     	White=2     	---        Inaccurate:     	White=3     	Black=3      OK:         	White=9     	Black=8      Best:        	White=2     	Black=1      Strong:       	---       	Black=1} 0-1

[Event "Grand Prix Romania 1st Stage 2024"]
[Site "Bucuresti"]
[Date "2024.03.23"]
[Round "2.8"]
[White "Korobov, Anton"]
[Black "Toma, Iustin"]
[Result "1-0"]
[ECO "A58"]
[WhiteElo "2662"]
[BlackElo "1891"]
[Annotator "TA"]
[PlyCount "83"]
[EventDate "2024.03.20"]
[EventType "swiss"]
[EventCountry "ROU"]
[SourceTitle "playchess.com"]
[Source "ChessBase"]
[SourceQuality "1"]
[TimeControl "900+5"]

{[%evp 9,83,27,39,13,29,13,39,39,24,0,57,9,21,12,14,0,83,71,76,70,85,113,146,132,163,147,184,124,260,257,306,308,313,291,285,268,359,348,347,343,408,362,363,363,377,366,372,366,348,303,447,408,440,436,563,559,1327,1291,1181,680,731,721,777,751,1300,1104,956,939,2724,2652,29981,29982,29982,29983,29978,29976]} 1. d4 {[%emt 0:00:03]} Nf6 {[%emt 0:00:02]} 2. c4 {[%emt 0:00:02]} c5 {[%emt 0:00:02]} 3. d5 {[%emt 0:00:03]} b5 {[%emt 0:00:01]} 4. cxb5 {[%emt 0:00:04]} a6 {[%emt 0:00:01]} 5. bxa6 {[%emt 0:00:02]} e6 {[%emt 0:00:03]} 6. dxe6 {[%emt 0:00:12]} fxe6 {[%emt 0:00:02][%cal Of8e7]} 7. Nf3 {[%emt 0:00:05]} Bxa6 {[%emt 0:00:11]} 8. g3 {[%emt 0:00:02] White is slightly better.} Nc6 {[%emt 0:00:05]} 9. Bh3 {[%emt 0:00:05]} Qa5+ {[%emt 0:03:43]} (9... Be7 $11) 10. Bd2 {[%emt 0:00:37]} (10. Nc3 $14 {is more appropriate.}) 10... Qb6 {[%emt 0:00:10]} 11. Bc3 {[%emt 0:00:26] Prevents Nd4.} Be7 {[%emt 0:01:28]} 12. O-O {[%emt 0:00:12]} Nb4 {[%emt 0:03:45]} (12... O-O $11 {keeps the balance.}) 13. b3 {[%emt 0:00:40][%cal Bb2b3,Bb3c4][%mdl 32]} Nbd5 {[%emt 0:00:17]} 14. Bb2 {[%emt 0:00:05]} O-O {[%emt 0:00:30]} 15. Nbd2 {[%emt 0:00:10]} Qa5 {[%emt 0:02:04]} 16. Nc4 {[%emt 0:00:50]} Bxc4 {[%emt 0:00:07]} 17. bxc4 {[%emt 0:00:02]} Nb6 {[%emt 0:00:00]} 18. Ne5 {[%emt 0:00:18]} (18. Qd3 $18) 18... Rad8 {[%emt 0:00:42] Black cannot hold the game after this.} (18... Na4 $16 {might work better.}) 19. a4 $18 {[%emt 0:00:48]} Kh8 {[%emt 0:01:22]} 20. Qc2 {[%emt 0:00:19]} Bd6 {[%emt 0:00:17]} 21. Rfd1 {[%emt 0:00:19]} Bc7 {[%emt 0:00:33]} 22. Bg2 {[%emt 0:01:54]} Bxe5 {[%emt 0:00:40]} 23. Bxe5 {[%emt 0:00:13]} Ng4 {[%emt 0:00:38]} 24. Bc3 {[%emt 0:00:27]} Qa6 {[%emt 0:00:03]} 25. Bf3 {[%emt 0:00:03] This pair of bishops is nice.} Nf6 {[%emt 0:00:04]} 26. Bxf6 {[%emt 0:00:48]} Rxf6 {[%emt 0:00:02]} 27. Rd6 {[%emt 0:00:20]} Qa5 {[%emt 0:00:06]} 28. Rb1 {[%emt 0:00:28]} Nc8 {[%emt 0:00:05][%cal Bb6c8,Bc8e7,Be7f5][%mdl 32]} 29. Rd3 {[%emt 0:00:36]} d6 {[%emt 0:00:03]} (29... e5 $142 30. Rd5 d6) 30. Rb5 {[%emt 0:00:12] Black is weak on the light squares} Qa7 {[%emt 0:00:17]} 31. a5 {[%emt 0:00:03]} ({Don't take} 31. Rb7 Qa6 32. Qb3 d5) 31... Rd7 {[%emt 0:00:04]} 32. Ra3 {[%emt 0:00:28] [#] Black must now prevent a6.} Ne7 {[%emt 0:00:09]} 33. a6 {[%emt 0:00:08]} Rf8 {[%emt 0:00:05]} 34. Qe4 {[%emt 0:00:22]} d5 {[%emt 0:00:14]} 35. Qxe6 {[%emt 0:00:17]} dxc4 {[%emt 0:00:00]} 36. Qxc4 {[%emt 0:00:13]} Rc7 {[%emt 0:00:03]} 37. Kg2 {[%emt 0:00:23]} Nf5 {[%emt 0:00:02]} 38. Qf4 {[%emt 0:00:16] [#] Threatens to win with Rb7.} Rcf7 {[%emt 0:00:06]} 39. Rb7 {[%emt 0:00:12]} Rxb7 {[%emt 0:00:04]} 40. axb7 {[%emt 0:00:02] White mates.} Qxa3 {[%emt 0:00:07]} 41. b8=Q {[%emt 0:00:30][%cal Rb8f8]} (41. b8=B Ne3+ 42. Qxe3 Qxe3 43. fxe3 Rxb8 $19) 41... c4 {[%emt 0:00:04]} 42. Qbe5 {[%emt 0:00:20] Weighted Error Value: White=0.28 (precise) /Black=0.49.  Mistake:       	White=2     	Black=4      Inaccurate:     	---       	Black=3      OK:         	White=15    	Black=4      Best:        	---       	Black=2} 1-0

[Event "Grand Prix Romania 1st Stage 2024"]
[Site "Bucuresti"]
[Date "2024.03.23"]
[Round "2.9"]
[White "Kuzubov, Yuriy"]
[Black "Stan, Andrei-Mihaita"]
[Result "1-0"]
[ECO "B14"]
[WhiteElo "2605"]
[BlackElo "2042"]
[Annotator "TA"]
[PlyCount "75"]
[EventDate "2024.03.20"]
[EventType "swiss"]
[EventCountry "ROU"]
[SourceTitle "playchess.com"]
[Source "ChessBase"]
[SourceQuality "1"]
[TimeControl "900+5"]

{[%evp 22,75,0,3,165,179,151,89,146,79,91,96,83,81,92,93,92,88,183,192,229,257,251,248,258,191,199,105,106,106,187,143,360,355,470,512,531,163,566,533,669,658,1171,1171,1171,1121,5543,5056,29970,29971,29973,29974,29976,29977,29985,29986]} 1. d4 {[%emt 0:00:03]} Nf6 {[%emt 0:00:02]} 2. Nf3 {[%emt 0:00:02]} c5 {[%emt 0:00:06]} 3. e3 {[%emt 0:00:13]} e6 {[%emt 0:00:13]} 4. c4 {[%emt 0:00:09]} cxd4 {[%emt 0:00:17]} 5. exd4 {[%emt 0:00:03]} d5 {[%emt 0:00:15]} 6. Nc3 {[%emt 0:00:06]} Be7 {[%emt 0:00:10]} 7. cxd5 {[%emt 0:00:15]} Nxd5 {[%emt 0:01:15]} 8. Bd3 {[%emt 0:00:06]} O-O {[%emt 0:00:17]} 9. O-O {[%emt 0:00:03]} Nc6 {[%emt 0:00:57]} 10. a3 {[%emt 0:00:08]} b6 {[%emt 0:00:18]} 11. Nxd5 {[%emt 0:01:46]} Qxd5 {[%emt 0:01:05]} 12. Qc2 {[%emt 0:00:02]} Nxd4 $2 {[%emt 0:00:52]} (12... Bb7 $11 {and Black is okay.} 13. Bxh7+ Kh8) 13. Nxd4 $18 {[%emt 0:00:04]} Qxd4 {[%emt 0:00:03]} 14. Bxh7+ {[%emt 0:00:08]} Kh8 {[%emt 0:00:00] [#] aiming for ...g6. White is better.} 15. Be3 {[%emt 0:00:18]} (15. Be4 $142 Ba6 16. Rd1) 15... Qh4 $16 {[%emt 0:00:49]} 16. Be4 {[%emt 0:00:11]} Ba6 {[%emt 0:00:16]} 17. Bxa8 {[%emt 0:02:04]} Bxf1 {[%emt 0:00:07]} 18. Rxf1 {[%emt 0:00:14]} Rxa8 {[%emt 0:00:03]} 19. Qc7 {[%emt 0:00:07]} f5 {[%emt 0:03:04] [#]} (19... Bf6 $16) 20. Qb7 $1 $18 {[%emt 0:02:18]} Rf8 {[%emt 0:01:37]} 21. g3 {[%emt 0:00:48]} Qf6 {[%emt 0:00:04]} 22. Qxa7 {[%emt 0:00:13]} b5 {[%emt 0:02:19]} 23. h4 {[%emt 0:02:29] Black must now prevent Bg5.} Bd6 {[%emt 0:00:45][%cal Of5f4]} 24. Rd1 {[%emt 0:02:43]} (24. Qa6 $18 f4 25. Qxd6 fxe3 26. Qc5) 24... Bb8 $16 {[%emt 0:00:49]} 25. Qd4 $36 {[%emt 0:00:10][%mdl 2048] White is on the roll. White is more active. Black is weak on the dark squares} e5 {[%emt 0:00:11]} (25... Be5 $16 {was called for.} 26. Qb4 f4 27. Bxf4 Bxf4 28. Qxf4 (28. gxf4 Qg6+ 29. Kf1 Qf5 $14) 28... Qxf4 29. gxf4 Rxf4) 26. Qb6 {[%emt 0:00:04]} Qf7 $2 {[%emt 0:00:21] Wards off Rd5} (26... f4 $16 27. Qxf6 gxf6) 27. Rd8 $18 {[%emt 0:00:20]} (27. Qxb5 f4 28. Bc5 fxg3 $14) 27... Rxd8 {[%emt 0:00:18]} 28. Qxd8+ {[%emt 0:00:02]} Qg8 {[%emt 0:00:01]} 29. Qxg8+ {[%emt 0:00:50]} Kxg8 {[%emt 0:00:01][%mdl 4096] Endgame. KB-KB} 30. b3 {[%emt 0:00:06][%cal Bb2b3,Bb3a4,Ba4a5,Ba5a6][%mdl 32]} Kf7 {[%emt 0:00:09]} 31. a4 {[%emt 0:00:08]} bxa4 {[%emt 0:00:03]} 32. bxa4 {[%emt 0:00:02]} Bc7 {[%emt 0:00:21]} 33. Bd2 {[%emt 0:00:15]} f4 {[%emt 0:00:21]} 34. gxf4 {[%emt 0:00:20]} exf4 {[%emt 0:00:01]} 35. a5 {[%emt 0:00:15] White mates.} Kg6 {[%emt 0:00:20]} 36. a6 {[%emt 0:00:03]} Bb6 {[%emt 0:00:09]} 37. Bxf4 {[%emt 0:00:03]} Kf5 {[%emt 0:00:03]} 38. Be3 {[%emt 0:00:02] Weighted Error Value: White=0.13 (very precise) /Black=0.77.  Loses game:     	---       	Black=1      Mistake:       	White=2     	Black=2      Inaccurate:     	---       	Black=4      OK:         	White=8     	Black=5      Best:        	White=4     	Black=4} 1-0